bitfinex/quotes_SOLUSD_20230102
["timestamp","ask_amount","ask_price","bid_price","bid_amount"]
[1672631633048,131.2673,10.03,10.021,15.80730786]
[1672631633259,106.28,10.03,10.02,30.0]
[1672631633472,31.38,10.03,10.021,15.80730786]
[1672631633682,31.38,10.03,10.022,104.96]
[1672631633897,31.38,10.03,10.021,74.96]
[1672631634090,74.9,10.029,10.018,234.4462]
[1672631634303,74.9,10.029,10.018,159.4562]
[1672631634532,74.9,10.029,10.019,45.80730786]
[1672631634951,106.28,10.03,10.02,15.80730786]
[1672631635158,106.28,10.03,10.02,90.77730786]
[1672631635580,106.28,10.03,10.019,30.0]
[1672631635810,106.28,10.03,10.019,220.4202]
[1672631636017,106.28,10.03,10.019,115.4402]
[1672631636233,151.88,10.03,10.019,115.4402]
[1672631636633,30.0,10.029,10.019,115.4402]
[1672631636844,74.91,10.028,10.019,115.4402]
[1672631637694,82.97264375,10.017,10.014,20.0]
[1672631637891,82.97264375,10.017,10.015,15.80730786]
[1672631638936,82.97264375,10.017,10.014,20.0]
[1672631639479,74.99,10.016,10.009,116.6461]
[1672631639696,104.99,10.016,10.004,75.08]
[1672631639887,104.99,10.016,10.0,20.0]
[1672631639888,11.38,10.01,10.005,15.80730786]
[1672631640099,104.99,10.016,10.005,15.80730786]
[1672631640615,74.99,10.016,10.006,30.0]
[1672631640845,82.97264375,10.017,10.006,75.07]
[1672631641056,82.97264375,10.017,10.007,15.80730786]
[1672631641476,112.97264375,10.017,10.007,15.80730786]
[1672631641786,82.97264375,10.017,10.007,15.80730786]
[1672631641978,82.97264375,10.017,10.008,75.05]
[1672631642408,82.97264375,10.017,10.01,30.0]
[1672631642621,82.97264375,10.017,10.011,75.03]
[1672631642835,82.97264375,10.017,10.012,30.0]
[1672631643046,82.97264375,10.017,10.013,75.02]
[1672631643259,82.97264375,10.017,10.012,15.80730786]
[1672631643481,30.0,10.016,10.007,75.06]
[1672631643678,30.0,10.016,10.006,159.00590786]
[1672631643886,104.99,10.016,10.006,159.00590786]
[1672631644298,104.99,10.016,10.003,75.09]
[1672631644521,104.99,10.016,10.002,75.1]
[1672631644826,104.99,10.016,10.001,35.80730786]
[1672631644827,407.09,10.016,10.001,35.80730786]
[1672631645027,11.35,10.01,9.9974,54.19014957]
[1672631645349,75.05,10.009,9.9996,15.80730786]
[1672631645559,105.01,10.014,10.0,11.38]
[1672631645764,105.01,10.014,10.001,75.11]
[1672631645981,105.01,10.014,10.001,90.91730786]
[1672631646295,157.96264375,10.017,10.002,45.80730786]
[1672631646503,82.97264375,10.017,10.004,30.0]
[1672631646708,82.97264375,10.017,10.005,75.08]
[1672631646920,82.97264375,10.017,10.005,145.07745743]
[1672631647154,82.97264375,10.017,10.006,69.99745743]
[1672631647368,82.97264375,10.017,10.008,30.0]
[1672631647576,82.97264375,10.017,10.009,95.05]
[1672631647896,82.97264375,10.017,10.009,110.85730786]
[1672631648102,82.97264375,10.017,10.009,20.0]
[1672631648526,30.0,10.016,10.009,20.0]
[1672631648728,30.0,10.016,10.005,75.08]
[1672631648729,75.0,10.015,10.005,75.08]
[1672631648957,75.0,10.015,10.001,75.11]
[1672631649154,187.3638,10.015,10.001,75.11]
[1672631649487,30.0,10.014,9.9981,75.13]
[1672631649691,11.32,10.01,10.0,15.80730786]
[1672631649903,75.05,10.009,10.0,15.80730786]
[1672631650114,191.3205,10.014,10.0,15.80730786]
[1672631650115,75.02,10.013,10.0,15.80730786]
[1672631650324,75.02,10.013,10.002,30.0]
[1672631650523,75.0,10.015,10.003,75.09]
[1672631650739,82.97264375,10.017,10.004,20.0]
[1672631650947,82.97264375,10.017,10.005,75.08]
[1672631651153,82.97264375,10.017,10.005,90.88730786]
[1672631651478,82.97264375,10.017,10.007,30.0]
[1672631651689,82.97264375,10.017,10.008,75.05]
[1672631651884,82.97264375,10.017,10.008,90.85730786]
[1672631652215,82.97264375,10.017,10.008,75.05]
[1672631652426,82.97264375,10.017,10.01,30.0]
[1672631652636,82.97264375,10.017,10.011,75.03]
[1672631652842,82.97264375,10.017,10.011,15.80730786]
[1672631653040,82.97264375,10.017,10.008,75.05]
[1672631653251,82.97264375,10.017,10.009,15.80730786]
[1672631653482,82.97264375,10.017,10.01,30.0]
[1672631653887,82.97264375,10.017,10.011,15.80730786]
[1672631654095,82.97264375,10.017,10.008,75.05]
[1672631654309,82.97264375,10.017,10.009,30.0]
[1672631654717,82.97264375,10.017,10.01,75.04]
[1672631654930,82.97264375,10.017,10.011,30.0]
[1672631655785,82.97264375,10.017,10.012,20.0]
[1672631656640,82.97264375,10.017,10.01,20.0]
[1672631657040,82.97264375,10.017,10.01,35.80730786]
[1672631658418,82.97264375,10.017,10.011,45.80730786]
[1672631658619,82.97264375,10.017,10.013,30.0]
[1672631658937,0.00114375,10.017,10.014,110.81730786]
[1672631659156,74.9,10.029,10.015,30.0]
[1672631659364,74.9,10.029,10.016,94.99]
[1672631659571,30.0,10.028,10.016,94.99]
[1672631659782,74.91,10.027,10.016,94.99]
[1672631660304,74.91,10.027,10.016,20.0]
[1672631660623,74.9,10.029,10.017,120.79730786]
[1672631660833,11.38,10.03,10.018,20.0]
[1672631661032,11.38,10.03,10.019,74.97]
[1672631661241,11.38,10.03,10.021,30.0]
[1672631661450,11.38,10.03,10.022,20.0]
[1672631661666,41.38,10.03,10.022,20.0]
[1672631661872,30.0,10.03,10.02,94.96]
[1672631662093,74.9,10.029,10.02,20.0]
[1672631662304,38.47,10.03,10.02,30.0]
[1672631662513,30.0,10.03,10.021,20.0]
[1672631662731,74.88,10.031,10.021,20.0]
[1672631663241,30.0,10.03,10.021,20.0]
[1672631663656,74.9,10.029,10.021,20.0]
[1672631663872,74.9,10.029,10.019,20.0]
[1672631664197,74.88,10.031,10.021,30.0]
[1672631664415,74.88,10.031,10.022,20.0]
[1672631664604,74.88,10.031,10.022,94.95]
[1672631665027,97.3938,10.032,10.022,20.0]
[1672631665671,74.87,10.032,10.022,20.0]
[1672631665877,77.5408,10.033,10.022,20.0]
[1672631665878,47.5408,10.033,10.022,20.0]
[1672631666088,122.4108,10.033,10.022,35.80730786]
[1672631666297,74.84,10.036,10.023,104.94]
[1672631666503,74.82,10.039,10.024,20.0]
[1672631666715,74.81,10.04,10.025,74.93]
[1672631666908,83.31,10.04,10.022,74.95]
[1672631667124,30.0,10.038,10.021,30.0]
[1672631667333,74.84,10.037,10.022,20.0]
[1672631667562,74.84,10.037,10.021,30.0]
[1672631668085,30.0,10.036,10.021,30.0]
[1672631668286,74.85,10.035,10.021,45.80730786]
[1672631668927,74.85,10.035,10.022,94.95]
[1672631669119,74.85,10.035,10.022,20.0]
[1672631669333,74.85,10.035,10.024,30.0]
[1672631669577,74.85,10.036,10.024,30.0]
[1672631670699,74.85,10.036,10.024,45.80730786]
[1672631670912,74.85,10.036,10.024,120.73730786]
[1672631671118,74.85,10.036,10.026,30.0]
[1672631671331,74.83,10.038,10.027,94.91]
[1672631671549,117.8707,10.039,10.026,15.80730786]
[1672631671752,74.83,10.038,10.024,30.0]
[1672631672173,104.83,10.038,10.024,30.0]
[1672631672712,30.0,10.037,10.024,104.93]
[1672631672908,74.85,10.036,10.024,30.0]
[1672631673118,30.0,10.035,10.02,30.0]
[1672631673353,74.86,10.034,10.021,20.0]
[1672631673763,74.86,10.034,10.02,20.0]
[1672631673975,186.2019,10.034,10.02,20.0]
[1672631674200,30.0,10.033,10.02,20.0]
[1672631674404,74.88,10.032,10.02,20.0]
[1672631674595,74.88,10.032,10.02,94.96]
[1672631674806,74.88,10.032,10.02,20.0]
[1672631675015,74.87,10.033,10.021,90.76730786]
[1672631675238,111.3419,10.034,10.022,50.0]
[1672631675457,111.3419,10.034,10.023,74.94]
[1672631675858,74.87,10.033,10.023,74.94]
[1672631676086,74.87,10.033,10.022,50.0]
[1672631676282,74.87,10.033,10.023,74.94]
[1672631676494,74.87,10.033,10.022,50.0]
[1672631677127,186.2019,10.034,10.022,50.0]
[1672631677342,186.2019,10.034,10.023,74.94]
[1672631677765,30.0,10.033,10.022,124.95]
[1672631677982,74.88,10.032,10.022,124.95]
[1672631678169,104.87,10.033,10.022,124.95]
[1672631678379,104.87,10.033,10.022,94.95]
[1672631678816,104.87,10.033,10.022,20.0]
[1672631681443,406.97,10.033,10.021,20.0]
[1672631681642,406.97,10.033,10.02,133.3126]
[1672631681856,104.87,10.033,10.02,133.3126]
[1672631682388,406.97,10.033,10.02,133.3126]
[1672631682708,104.87,10.033,10.02,133.3126]
[1672631683631,406.97,10.033,10.02,133.3126]
[1672631684279,8.5,10.03,10.02,133.3126]
[1672631684473,74.9,10.029,10.02,133.3126]
[1672631685137,30.0,10.028,10.02,133.3126]
[1672631685340,74.91,10.027,10.02,133.3126]
[1672631685990,30.0,10.026,10.02,133.3126]
[1672631686829,30.0,10.026,10.02,20.0]
[1672631689355,104.9,10.028,10.02,20.0]
[1672631691982,74.9,10.028,10.02,20.0]
[1672631692170,123.4133,10.03,10.021,15.80730786]
[1672631692391,48.5233,10.03,10.022,20.0]
[1672631692596,30.0,10.031,10.022,20.0]
[1672631692923,30.0,10.029,10.021,20.0]
[1672631693121,74.9,10.028,10.021,20.0]
[1672631693336,30.0,10.027,10.021,20.0]
[1672631694078,74.9,10.028,10.021,20.0]
[1672631694398,30.0,10.029,10.021,20.0]
[1672631694597,74.9,10.028,10.021,20.0]
[1672631695020,30.0,10.027,10.021,20.0]
[1672631697448,74.92,10.026,10.021,20.0]
[1672631697639,30.0,10.025,10.021,20.0]
[1672631700479,30.0,10.027,10.021,20.0]
[1672631701974,104.9,10.028,10.021,20.0]
[1672631702291,30.0,10.029,10.021,20.0]
[1672631702691,74.9,10.028,10.021,20.0]
[1672631702903,104.9,10.029,10.021,20.0]
[1672631705236,407.0,10.029,10.021,20.0]
[1672631705447,104.9,10.029,10.021,20.0]
[1672631706595,74.9,10.029,10.021,20.0]
[1672631706804,104.89,10.03,10.021,20.0]
[1672631708371,104.89,10.03,10.021,42.5376]
[1672631709418,406.99,10.03,10.021,42.5376]
[1672631710167,104.89,10.03,10.021,42.5376]
[1672631712673,406.99,10.03,10.021,42.5376]
[1672631715738,416.05,10.03,10.021,42.5376]
[1672631715928,113.95,10.03,10.021,42.5376]
[1672631721627,416.05,10.03,10.021,42.5376]
[1672631722373,113.95,10.03,10.021,42.5376]
[1672631722798,189.47305383,10.03,10.021,42.5376]
[1672631723193,491.57305383,10.03,10.021,42.5376]
[1672631724161,189.47305383,10.03,10.021,42.5376]
[1672631724784,30.0,10.027,10.021,42.5376]
[1672631724985,104.91,10.027,10.021,42.5376]
[1672631725619,482.53305383,10.027,10.013,30.0]
[1672631725842,23.547,10.026,10.013,16.83]
[1672631726047,98.477,10.025,10.012,187.4738]
[1672631726244,235.2119,10.025,10.012,187.4738]
[1672631726572,30.0,10.024,10.012,187.4738]
[1672631726979,75.52305383,10.021,10.013,22.9039]
[1672631727295,104.96,10.02,10.013,22.9039]
[1672631729933,104.96,10.02,10.002,30.0]
[1672631729934,416.1,10.02,10.006,7.385]
[1672631730259,416.09,10.02,10.003,5.99]
[1672631730451,585.21397764,10.02,10.002,5.99]
[1672631730661,680.39503377,10.02,10.001,28.955]
[1672631730891,668.10672385,10.02,10.001,28.955]
[1672631731106,302.1,10.018,10.001,28.955]
[1672631731412,540.207,10.017,10.001,28.955]
[1672631731610,30.0,10.016,10.001,28.955]
[1672631731819,377.1,10.015,10.001,20.0]
[1672631732040,465.217,10.014,10.001,20.0]
[1672631732251,75.02,10.013,10.0,20.0]
[1672631732465,30.0,10.012,9.998,20.0]
[1672631732683,75.03,10.011,9.9981,21.29]
[1672631732993,75.03,10.011,9.999,20.0]
[1672631733307,75.03,10.011,10.002,14.98894301]
[1672631733520,30.0,10.01,10.002,14.98894301]
[1672631733834,75.05,10.009,10.002,14.98894301]
[1672631734151,30.0,10.008,10.002,14.98894301]
[1672631734981,30.0,10.008,9.999,20.0]
[1672631735191,30.0,10.008,9.998,20.0]
[1672631735402,30.0,10.008,9.9982,30.0]
[1672631735627,30.0,10.008,9.9981,17.98]
[1672631735937,30.0,10.008,9.999,20.0]
[1672631736145,75.05,10.009,9.999,20.0]
[1672631736332,75.04,10.01,9.9992,30.0]
[1672631736546,75.04,10.01,10.0,20.0]
[1672631736970,30.0,10.009,10.0,20.0]
[1672631740340,30.0,10.007,10.0,20.0]
[1672631741746,75.07,10.006,10.0,20.0]
[1672631741947,30.0,10.007,10.0,20.0]
[1672631742371,75.05,10.008,10.0,20.0]
[1672631742575,75.04,10.01,10.0,20.0]
[1672631742791,105.03,10.011,10.001,19.11]
[1672631743520,105.03,10.011,10.0,76.4278]
[1672631745526,105.03,10.011,10.001,21.56]
[1672631746575,75.03,10.011,10.001,21.56]
[1672631746783,75.03,10.011,10.001,211.8293717]
[1672631746975,163.117,10.012,10.002,15.80730786]
[1672631747184,163.117,10.012,10.003,21.8]
[1672631747528,23.4069,10.015,10.003,21.8]
[1672631747529,74.99,10.017,10.004,136.93934187]
[1672631747749,30.0,10.018,10.005,21.8]
[1672631748048,30.0,10.018,10.005,212.0693717]
[1672631748241,74.97,10.019,10.006,240.2693717]
[1672631748476,74.97,10.019,10.006,287.2165717]
[1672631748660,30.0,10.018,10.007,190.2693717]
[1672631748870,30.0,10.018,10.008,20.0]
[1672631749080,30.0,10.018,10.008,73.72029455]
[1672631749300,30.0,10.018,10.008,144.85232856]
[1672631749941,30.0,10.018,10.008,73.72029455]
[1672631754029,30.0,10.018,10.009,12.62]
[1672631754356,30.0,10.018,10.01,20.0]
[1672631754679,104.95,10.022,10.01,31.3]
[1672631754890,138.8265,10.022,10.011,182.57296976]
[1672631755096,74.96,10.021,10.012,20.0]
[1672631755407,138.8265,10.022,10.012,83.85730786]
[1672631755725,138.8265,10.022,10.013,95.13003401]
[1672631755939,138.8265,10.022,10.013,110.93734187]
[1672631756130,138.8265,10.022,10.014,18.05]
[1672631756348,138.8265,10.022,10.014,113.18003401]
[1672631756540,138.8265,10.022,10.015,95.13003401]
[1672631757175,108.8265,10.022,10.015,95.13003401]
[1672631757382,74.91,10.027,10.017,30.0]
[1672631757606,74.89,10.03,10.018,38.05]
[1672631757803,74.89,10.03,10.018,236.7513619]
[1672631758016,30.0,10.029,10.019,152.4556619]
[1672631758271,30.0,10.029,10.02,18.05]
[1672631758478,30.0,10.029,10.02,170.5056619]
[1672631758644,30.0,10.029,10.021,95.13003401]
[1672631759374,30.0,10.029,10.022,20.0]
[1672631759795,30.0,10.029,10.022,114.97429401]
[1672631760341,104.88,10.031,10.022,114.97429401]
[1672631760527,30.0,10.031,10.022,114.97429401]
[1672631761287,30.0,10.031,10.023,15.80730786]
[1672631761598,178.39507414,10.032,10.024,100.03562734]
[1672631761803,30.0,10.031,10.024,100.03562734]
[1672631762012,234.8365,10.033,10.024,115.8429352]
[1672631762197,159.9665,10.033,10.024,115.8429352]
[1672631762405,30.0,10.032,10.025,100.03562734]
[1672631762628,159.9665,10.033,10.025,100.03562734]
[1672631762824,159.9665,10.033,10.026,15.80730786]
[1672631763254,159.9665,10.033,10.026,115.8429352]
[1672631763674,74.84,10.037,10.027,35.80730786]
[1672631764212,104.83,10.038,10.028,100.03562734]
[1672631764400,104.83,10.038,10.029,20.0]
[1672631764736,104.83,10.038,10.029,35.80730786]
[1672631764939,30.0,10.038,10.029,115.75626854]
[1672631765160,104.83,10.038,10.029,115.75626854]
[1672631765468,104.83,10.038,10.03,20.0]
[1672631765680,30.0,10.038,10.03,20.0]
[1672631765880,30.0,10.039,10.031,99.94896068]
[1672631766093,25.5,10.039,10.032,20.0]
[1672631766312,24.5,10.039,10.032,20.0]
[1672631766503,23.5,10.039,10.032,20.0]
[1672631766933,22.5,10.039,10.032,20.0]
[1672631770172,22.5,10.039,10.029,19.91]
[1672631770386,74.83,10.038,10.024,7.025]
[1672631770608,264.6415,10.038,10.022,53.9048]
[1672631770806,196.3164,10.037,10.024,15.80730786]
[1672631771024,30.0,10.035,10.025,7.779]
[1672631771248,30.0,10.035,10.024,25.07230786]
[1672631771554,30.0,10.035,10.025,15.80730786]
[1672631771776,144.8481,10.035,10.025,15.80730786]
[1672631771960,114.8481,10.035,10.025,15.80730786]
[1672631772179,114.8481,10.035,10.026,9.263]
[1672631772717,114.8481,10.035,10.027,15.80730786]
[1672631772912,74.84,10.037,10.027,15.80730786]
[1672631773125,74.83,10.038,10.028,59.262]
[1672631773663,74.83,10.038,10.029,15.80730786]
[1672631773860,74.81,10.04,10.03,20.0]
[1672631774272,74.81,10.04,10.03,35.80730786]
[1672631774837,74.81,10.04,10.031,30.0]
[1672631775027,74.81,10.04,10.032,20.0]
[1672631775237,74.81,10.04,10.03,82.56160786]
[1672631775776,30.0,10.039,10.03,82.56160786]
[1672631776300,74.83,10.038,10.03,66.7543]
[1672631776498,30.0,10.037,10.03,66.7543]
[1672631777247,74.83,10.038,10.03,82.56160786]
[1672631777461,30.0,10.039,10.03,82.56160786]
[1672631777771,30.0,10.039,10.03,46.7543]
[1672631777980,30.0,10.037,10.03,46.7543]
[1672631778172,74.84,10.036,10.03,46.7543]
[1672631778594,30.0,10.035,10.03,46.7543]
[1672631778806,30.0,10.035,10.026,24.4609]
[1672631779664,30.0,10.035,10.024,18.42]
[1672631779875,74.86,10.034,10.022,74.0701]
[1672631780085,231.4414,10.034,10.022,74.0701]
[1672631780594,231.4414,10.034,10.022,49.1666]
[1672631780804,30.0,10.033,10.022,49.1666]
[1672631781020,74.87,10.032,10.022,49.1666]
[1672631781224,30.0,10.031,10.022,49.1666]
[1672631781441,74.89,10.03,10.02,24.0859]
[1672631781651,30.0,10.029,10.021,20.0]
[1672631781857,30.0,10.027,10.021,20.0]
[1672631782294,74.9,10.028,10.019,20.0]
[1672631782499,104.88,10.031,10.02,27.09730786]
[1672631782693,104.87,10.032,10.021,30.0]
[1672631782904,224.5906,10.032,10.022,23.201]
[1672631783326,224.5906,10.032,10.022,20.0]
[1672631784921,224.5906,10.032,10.021,20.0]
[1672631790923,222.0906,10.032,10.021,99.4005]
[1672631791348,222.0906,10.032,10.021,69.4005]
[1672631792906,222.0906,10.032,10.022,15.80730786]
[1672631793430,222.0906,10.032,10.021,69.4005]
[1672631795011,222.0906,10.032,10.022,15.80730786]
[1672631795641,147.2206,10.032,10.022,15.80730786]
[1672631796068,30.0,10.03,10.022,15.80730786]
[1672631799441,30.0,10.03,10.021,69.4005]
[1672631799651,30.0,10.03,10.021,51.9005]
[1672631799967,30.0,10.03,10.021,49.4005]
[1672631801141,104.89,10.03,10.021,49.4005]
[1672631801336,104.89,10.03,10.022,20.0]
[1672631803338,116.24,10.03,10.022,20.0]
[1672631806276,116.24,10.03,10.017,7.077]
[1672631806487,167.8353,10.029,10.017,7.077]
[1672631806696,30.0,10.027,10.017,7.077]
[1672631806917,30.0,10.025,10.017,7.077]
[1672631807127,74.93,10.024,10.017,7.077]
[1672631807339,30.0,10.023,10.017,7.077]
[1672631807963,74.93,10.024,10.017,7.077]
[1672631808179,186.625,10.026,10.018,20.0]
[1672631808497,30.0,10.025,10.017,7.077]
[1672631809865,30.0,10.025,10.017,22.88430786]
[1672631812071,159.155,10.026,10.017,22.88430786]
[1672631812276,111.705,10.026,10.018,20.0]
[1672631812805,74.89,10.03,10.019,45.80730786]
[1672631813000,30.0,10.029,10.02,20.0]
[1672631813210,74.89,10.03,10.02,44.5043]
[1672631813656,30.0,10.029,10.02,44.5043]
[1672631816053,29.0,10.029,10.02,44.5043]
[1672631828991,74.9,10.028,10.02,44.5043]
[1672631829204,29.0,10.029,10.02,44.5043]
[1672631829925,74.9,10.028,10.02,44.5043]
[1672631830252,30.0,10.027,10.02,44.5043]
[1672631830870,30.0,10.027,10.01,11.32]
[1672631831084,30.0,10.025,10.013,23.7976]
[1672631831295,30.0,10.023,10.013,23.7976]
[1672631831506,30.0,10.023,10.013,39.60490786]
[1672631832123,189.5885,10.023,10.013,23.7976]
[1672631832977,74.95,10.022,10.013,23.7976]
[1672631833183,30.0,10.021,10.013,23.7976]
[1672631834122,30.0,10.021,10.012,43.5747]
[1672631834336,30.0,10.021,10.012,23.5747]
[1672631835816,30.0,10.019,10.012,23.5747]
[1672631836021,30.0,10.019,10.011,23.2775]
[1672631836241,30.0,10.017,10.012,20.0]
[1672631836982,30.0,10.017,10.01,20.0]
[1672631837380,30.0,10.017,10.008,20.0]
[1672631837818,30.0,10.017,10.008,35.80730786]
[1672631839079,30.0,10.017,10.008,20.0]
[1672631843682,30.0,10.017,10.007,3.011]
[1672631843910,74.99,10.016,10.005,5.477]
[1672631844114,233.5901,10.016,10.004,6.16]
[1672631844322,188.6001,10.015,10.003,45.20900786]
[1672631844534,233.6101,10.014,10.003,39.04800786]
[1672631844851,30.0,10.013,10.003,23.2407]
[1672631845690,186.0924,10.013,10.003,23.2407]
[1672631846535,75.02,10.012,10.003,23.2407]
[1672631846942,30.0,10.011,10.003,23.2407]
[1672631852848,231.1124,10.012,10.003,23.2407]
[1672631853046,156.0924,10.012,10.003,23.2407]
[1672631853894,30.0,10.011,10.003,23.2407]
[1672631859351,75.04,10.01,10.003,23.2407]
[1672631859571,30.0,10.009,10.003,23.2407]
[1672631859800,30.0,10.009,10.002,23.9992]
[1672631860305,30.0,10.009,10.001,27.52]
[1672631860817,24.5211,10.011,10.001,27.52]
[1672631861028,24.5211,10.011,10.002,30.0]
[1672631861239,54.5211,10.011,10.003,28.28]
[1672631861569,24.5211,10.011,10.003,28.28]
[1672631862304,54.5211,10.011,10.003,28.28]
[1672631863366,30.0,10.01,10.003,28.28]
[1672631863762,30.0,10.01,10.002,122.12695402]
[1672631865018,54.5211,10.011,10.002,122.12695402]
[1672631865255,24.5211,10.011,10.002,122.12695402]
[1672631865671,24.5211,10.011,10.003,30.0]
[1672631865982,24.5211,10.011,10.004,33.34]
[1672631866600,24.5211,10.011,10.003,34.46]
[1672631866921,54.5211,10.011,10.003,34.46]
[1672631867324,54.5211,10.011,10.002,147.14755402]
[1672631868914,30.0,10.01,10.002,147.14755402]
[1672631869340,54.5211,10.011,10.002,147.14755402]
[1672631869544,54.5211,10.011,10.002,208.86857328]
[1672631870172,24.5211,10.011,10.002,208.86857328]
[1672631870502,74.99,10.016,10.003,30.0]
[1672631870820,104.98,10.018,10.005,30.0]
[1672631871027,104.98,10.018,10.006,49.2695]
[1672631871242,104.98,10.018,10.006,173.6439736]
[1672631871424,104.98,10.018,10.007,103.57448625]
[1672631871639,104.98,10.018,10.007,126.94898625]
[1672631872291,104.98,10.018,10.008,23.3745]
[1672631872480,104.98,10.018,10.009,20.0]
[1672631872686,104.98,10.018,10.009,43.3745]
[1672631873654,30.0,10.018,10.009,43.3745]
[1672631875754,104.98,10.018,10.003,22.6264]
[1672631875969,48.0529,10.017,10.004,35.58]
[1672631876161,242.8134,10.016,10.004,35.58]
[1672631876484,30.0,10.015,10.004,35.58]
[1672631876678,30.0,10.013,10.004,35.58]
[1672631877730,53.2362,10.013,10.004,35.58]
[1672631884150,53.2362,10.013,10.004,30.17]
[1672631884583,53.2362,10.013,10.003,82.8064]
[1672631885110,75.9499,10.013,10.003,150.07210318]
[1672631885320,75.9499,10.013,10.003,120.07210318]
[1672631885509,75.9499,10.013,10.003,135.87941104]
[1672631886159,75.9499,10.013,10.003,160.59351104]
[1672631889084,45.9499,10.013,10.003,160.59351104]
[1672631889296,75.9499,10.013,10.003,160.59351104]
[1672631889849,30.0,10.012,10.003,160.59351104]
[1672631890670,54.8348,10.012,10.003,160.59351104]
[1672631898874,54.8348,10.012,10.003,144.78620318]
[1672631899087,54.8348,10.012,10.004,13.74491782]
[1672631903496,129.8548,10.012,10.004,13.74491782]
[1672631904767,54.8348,10.012,10.004,29.55222568]
[1672631908132,54.8348,10.012,10.004,13.74491782]
[1672631925480,75.03,10.011,10.004,13.74491782]
[1672631925691,5.68,10.01,10.004,13.74491782]
[1672631925899,75.05,10.009,10.004,13.74491782]
[1672631926337,30.0,10.008,10.004,13.74491782]
[1672631935276,105.05,10.008,10.004,13.74491782]
[1672631935690,105.05,10.008,10.003,24.7141]
[1672631935916,105.05,10.008,10.005,13.72946944]
[1672631936142,30.0,10.006,9.9911,17.56]
[1672631936435,30.0,10.004,9.9934,15.80730786]
[1672631936656,30.0,10.004,9.9935,15.0]
[1672631936964,30.0,10.004,9.995,11.59456003]
[1672631937893,30.0,10.004,9.9935,15.0]
[1672631938440,30.0,10.002,9.9935,15.0]
[1672631939598,30.0,10.002,9.9897,30.0]
[1672631939599,30.0,10.002,9.9926,15.80730786]
[1672631939803,30.0,10.002,9.9927,22.95]
[1672631940116,30.0,10.002,9.9936,11.61623193]
[1672631940946,30.0,10.002,9.9928,23.9662]
[1672631941173,30.0,10.002,9.9929,25.96]
[1672631941571,30.0,10.002,9.993,15.80730786]
[1672631942116,75.09,10.003,9.9931,30.0]
[1672631942302,105.08,10.005,9.9931,30.0]
[1672631942639,105.07,10.006,9.9932,144.44288166]
[1672631942852,105.07,10.006,9.9933,30.0]
[1672631943039,105.07,10.006,9.9933,174.44288166]
[1672631943255,105.07,10.006,9.9934,144.44288166]